[Event "December 19 Late 2023"]
[Site "https://www.chess.com"]
[Date "2023.12.19"]
[Round "7"]
[White "Ang, Ern Jie Anderson"]
[Black "Sadovsky, Artem"]
[Result "1-0"]
[Board "59"]
[TimeControl "180+1"]
[WhiteFideId "5736200"]
[BlackFideId "4155840"]
[WhiteElo "1941"]
[BlackElo "2314"]
[WhiteTeam "MAS"]
[BlackTeam "FID"]
[WhiteClock "0:01:20"]
[BlackClock "0:00:00"]

1. d4 {[%clk 0:03:00]}  g6 {[%clk 0:03:00]} 2. c4 {[%clk 0:02:59]}  Bg7 {[%clk 0:03:01]} 3. Nf3 {[%clk 0:02:59]}  d6 {[%clk 0:03:02]} 4. g3 {[%clk 0:02:59]}  e5 {[%clk 0:03:03]} 5. dxe5 {[%clk 0:02:59]}  dxe5 {[%clk 0:03:03]} 6. Qxd8+ {[%clk 0:02:59]}  Kxd8 {[%clk 0:03:04]} 7. Nc3 {[%clk 0:02:59]}  f6 {[%clk 0:03:05]} 8. h4 {[%clk 0:02:53]}  Be6 {[%clk 0:03:05]} 9. b3 {[%clk 0:02:50]}  Nd7 {[%clk 0:03:06]} 10. Bh3 {[%clk 0:02:50]}  Bxh3 {[%clk 0:03:06]} 11. Rxh3 {[%clk 0:02:50]}  Ne7 {[%clk 0:03:06]} 12. h5 {[%clk 0:02:49]}  g5 {[%clk 0:02:56]} 13. g4 {[%clk 0:02:49]}  c6 {[%clk 0:02:36]} 14. Ba3 {[%clk 0:02:46]}  Bf8 {[%clk 0:02:36]} 15. Bxe7+ {[%clk 0:02:35]}  Bxe7 {[%clk 0:02:36]} 16. Nd2 {[%clk 0:02:36]}  Bb4 {[%clk 0:02:35]} 17. Nde4 {[%clk 0:02:30]}  Ke7 {[%clk 0:02:33]} 18. O-O-O {[%clk 0:02:25]}  Bxc3 {[%clk 0:02:33]} 19. Rxc3 {[%clk 0:02:24]}  Rhd8 {[%clk 0:02:31]} 20. Rcd3 {[%clk 0:02:19]}  h6 {[%clk 0:02:29]} 21. Nd6 {[%clk 0:02:14]}  Nc5 {[%clk 0:02:01]} 22. Nf5+ {[%clk 0:02:14]}  Ke8 {[%clk 0:02:02]} 23. Ng7+ {[%clk 0:02:14]}  Ke7 {[%clk 0:01:46]} 24. Nf5+ {[%clk 0:02:14]}  Ke8 {[%clk 0:01:46]} 25. Rxd8+ {[%clk 0:02:14]}  Rxd8 {[%clk 0:01:47]} 26. Rxd8+ {[%clk 0:02:14]}  Kxd8 {[%clk 0:01:48]} 27. Nxh6 {[%clk 0:02:15]}  Ke7 {[%clk 0:01:40]} 28. Nf5+ {[%clk 0:02:13]}  Kf7 {[%clk 0:01:39]} 29. f3 {[%clk 0:02:07]}  a5 {[%clk 0:01:35]} 30. Kd2 {[%clk 0:02:07]}  Kf8 {[%clk 0:01:17]} 31. Kc3 {[%clk 0:02:05]}  b6 {[%clk 0:01:05]} 32. a3 {[%clk 0:02:02]}  Ne6 {[%clk 0:00:58]} 33. e3 {[%clk 0:01:58]}  Nc5 {[%clk 0:00:49]} 34. b4 {[%clk 0:01:52]}  axb4+ {[%clk 0:00:50]} 35. axb4 {[%clk 0:01:52]}  Ne6 {[%clk 0:00:50]} 36. Nd6 {[%clk 0:01:50]}  Nc7 {[%clk 0:00:28]} 37. Kd3 {[%clk 0:01:29]}  Na6 {[%clk 0:00:23]} 38. b5 {[%clk 0:01:28]}  cxb5 {[%clk 0:00:23]} 39. cxb5 {[%clk 0:01:28]}  Nc5+ {[%clk 0:00:24]} 40. Kc4 {[%clk 0:01:28]}  Na4 {[%clk 0:00:08]} 41. Kd5 {[%clk 0:01:25]}  Ke7 {[%clk 0:00:02]} 42. Kc6 {[%clk 0:01:22]}  Ke6 {[%clk 0:00:00]} 43. h6 {[%clk 0:01:20]} 1-0

[Event "December 19 Late 2023"]
[Site "https://www.chess.com"]
[Date "2023.12.19"]
[Round "7"]
[White "Spata, German"]
[Black "Chylewski, Patryk"]
[Result "0-1"]
[Board "60"]
[TimeControl "180+1"]
[WhiteFideId "113026"]
[BlackFideId "1186191"]
[WhiteElo "2260"]
[BlackElo "2176"]
[WhiteTeam "ARG"]
[BlackTeam "POL"]
[WhiteClock "0:00:02"]
[BlackClock "0:00:30"]

1. Nf3 {[%clk 0:02:48]}  c5 {[%clk 0:02:58]} 2. b3 {[%clk 0:02:45]}  Nc6 {[%clk 0:02:56]} 3. Bb2 {[%clk 0:02:46]}  d6 {[%clk 0:02:54]} 4. c4 {[%clk 0:02:44]}  e5 {[%clk 0:02:52]} 5. Nc3 {[%clk 0:02:44]}  g6 {[%clk 0:02:52]} 6. g3 {[%clk 0:02:44]}  Bg7 {[%clk 0:02:52]} 7. d3 {[%clk 0:02:41]}  Nge7 {[%clk 0:02:53]} 8. Bg2 {[%clk 0:02:42]}  O-O {[%clk 0:02:52]} 9. O-O {[%clk 0:02:42]}  h6 {[%clk 0:02:52]} 10. a3 {[%clk 0:02:43]}  Be6 {[%clk 0:02:52]} 11. b4 {[%clk 0:02:40]}  cxb4 {[%clk 0:02:51]} 12. axb4 {[%clk 0:02:41]}  Nxb4 {[%clk 0:02:52]} 13. Qb3 {[%clk 0:02:41]}  Nbc6 {[%clk 0:02:46]} 14. Ba3 {[%clk 0:02:36]}  Rb8 {[%clk 0:02:36]} 15. Rfb1 {[%clk 0:02:28]}  Qd7 {[%clk 0:02:20]} 16. Qa4 {[%clk 0:02:19]}  Rfd8 {[%clk 0:02:10]} 17. Ne4 {[%clk 0:02:16]}  Nc8 {[%clk 0:02:07]} 18. Ra2 {[%clk 0:02:09]}  f5 {[%clk 0:02:00]} 19. Ned2 {[%clk 0:02:06]}  d5 {[%clk 0:01:52]} 20. cxd5 {[%clk 0:02:03]}  Bxd5 {[%clk 0:01:53]} 21. Rc2 {[%clk 0:01:57]}  Nb6 {[%clk 0:01:51]} 22. Qb5 {[%clk 0:01:52]}  g5 {[%clk 0:01:41]} 23. Bc5 {[%clk 0:01:44]}  Nc8 {[%clk 0:01:37]} 24. e4 {[%clk 0:01:39]}  fxe4 {[%clk 0:01:29]} 25. Nxe4 {[%clk 0:01:39]}  Be6 {[%clk 0:01:15]} 26. Rc3 {[%clk 0:01:11]}  a6 {[%clk 0:01:11]} 27. Qa4 {[%clk 0:01:07]}  Nd4 {[%clk 0:01:06]} 28. Qxd7 {[%clk 0:01:05]}  Nxf3+ {[%clk 0:01:05]} 29. Bxf3 {[%clk 0:01:06]}  Rxd7 {[%clk 0:01:04]} 30. Be3 {[%clk 0:01:00]}  Ne7 {[%clk 0:01:02]} 31. Nc5 {[%clk 0:00:53]}  Rc7 {[%clk 0:01:02]} 32. Rcc1 {[%clk 0:00:51]}  Bd5 {[%clk 0:01:01]} 33. Bxd5+ {[%clk 0:00:41]}  Nxd5 {[%clk 0:01:02]} 34. Nxa6 {[%clk 0:00:38]}  Rxc1+ {[%clk 0:00:56]} 35. Bxc1 {[%clk 0:00:38]}  Rc8 {[%clk 0:00:54]} 36. Bxg5 {[%clk 0:00:21]}  bxa6 {[%clk 0:00:50]} 37. Bd2 {[%clk 0:00:20]}  Rc2 {[%clk 0:00:47]} 38. Ba5 {[%clk 0:00:20]}  Ra2 {[%clk 0:00:45]} 39. Bd8 {[%clk 0:00:19]}  Nc3 {[%clk 0:00:41]} 40. Rb8 {[%clk 0:00:18]}  Kh7 {[%clk 0:00:39]} 41. Rb7 {[%clk 0:00:19]}  Kg6 {[%clk 0:00:38]} 42. Rb6+ {[%clk 0:00:19]}  Kf5 {[%clk 0:00:37]} 43. Rb7 {[%clk 0:00:19]}  Bf6 {[%clk 0:00:32]} 44. Rf7 {[%clk 0:00:19]}  Nd5 {[%clk 0:00:33]} 45. Rd7 {[%clk 0:00:10]}  Ke6 {[%clk 0:00:32]} 46. Rxd5 {[%clk 0:00:09]}  Kxd5 {[%clk 0:00:31]} 47. Bxf6 {[%clk 0:00:02]}  a5 {[%clk 0:00:30]} 0-1

[Event "December 19 Late 2023"]
[Site "https://www.chess.com"]
[Date "2023.12.19"]
[Round "7"]
[White "Kotlyar, Kirill"]
[Black "Rodriguez Fontecha, Marcos"]
[Result "1-0"]
[Board "61"]
[TimeControl "180+1"]
[WhiteFideId "24145599"]
[BlackFideId "2256576"]
[WhiteElo "2397"]
[BlackElo "2249"]
[WhiteTeam "RUS"]
[BlackTeam "ESP"]
[WhiteClock "0:01:24"]
[BlackClock "0:00:00"]

1. e4 {[%clk 0:03:00]}  e6 {[%clk 0:02:59]} 2. Nf3 {[%clk 0:03:00]}  Nf6 {[%clk 0:02:56]} 3. Nc3 {[%clk 0:03:00]}  d5 {[%clk 0:02:56]} 4. e5 {[%clk 0:03:00]}  Nfd7 {[%clk 0:02:54]} 5. d4 {[%clk 0:03:01]}  c5 {[%clk 0:02:55]} 6. dxc5 {[%clk 0:03:02]}  Bxc5 {[%clk 0:02:53]} 7. Bd3 {[%clk 0:03:01]}  Nc6 {[%clk 0:02:47]} 8. Bf4 {[%clk 0:03:01]}  Qb6 {[%clk 0:02:37]} 9. O-O {[%clk 0:03:00]}  Qxb2 {[%clk 0:02:30]} 10. Nb5 {[%clk 0:03:00]}  O-O {[%clk 0:01:58]} 11. Bd2 {[%clk 0:02:59]}  d4 {[%clk 0:01:39]} 12. Qe2 {[%clk 0:02:56]}  a6 {[%clk 0:01:30]} 13. Rfb1 {[%clk 0:02:55]}  Qxb1+ {[%clk 0:01:30]} 14. Rxb1 {[%clk 0:02:55]}  axb5 {[%clk 0:01:31]} 15. Bxh7+ {[%clk 0:02:23]}  Kxh7 {[%clk 0:01:32]} 16. Ng5+ {[%clk 0:02:24]}  Kg6 {[%clk 0:01:32]} 17. Qd3+ {[%clk 0:02:24]}  f5 {[%clk 0:01:27]} 18. Qg3 {[%clk 0:02:25]}  f4 {[%clk 0:01:18]} 19. Bxf4 {[%clk 0:02:21]}  Kf5 {[%clk 0:00:30]} 20. Nf3 {[%clk 0:01:32]}  Be7 {[%clk 0:00:17]} 21. Re1 {[%clk 0:01:32]}  Rxa2 {[%clk 0:00:10]} 22. h3 {[%clk 0:01:32]}  g5 {[%clk 0:00:08]} 23. Bxg5 {[%clk 0:01:29]}  Kg6 {[%clk 0:00:07]} 24. Bxe7+ {[%clk 0:01:29]}  Kf7 {[%clk 0:00:08]} 25. Bxf8 {[%clk 0:01:28]}  Kxf8 {[%clk 0:00:07]} 26. Qf4+ {[%clk 0:01:28]}  Ke7 {[%clk 0:00:07]} 27. Nxd4 {[%clk 0:01:28]}  Ra4 {[%clk 0:00:05]} 28. Nxc6+ {[%clk 0:01:27]}  bxc6 {[%clk 0:00:06]} 29. Qg5+ {[%clk 0:01:27]}  Ke8 {[%clk 0:00:00]} 30. Re3 {[%clk 0:01:24]} 1-0

[Event "December 19 Late 2023"]
[Site "https://www.chess.com"]
[Date "2023.12.19"]
[Round "7"]
[White "Essing, Arnold"]
[Black "Mkrtchyan, Mikayel"]
[Result "0-1"]
[Board "62"]
[TimeControl "180+1"]
[WhiteFideId "4619862"]
[BlackFideId "13305743"]
[WhiteElo "2257"]
[BlackElo "2033"]
[WhiteTeam "GER"]
[BlackTeam "ARM"]
[WhiteClock "0:00:00"]
[BlackClock "0:00:12"]

1. d4 {[%clk 0:02:57]}  d5 {[%clk 0:02:59]} 2. Nf3 {[%clk 0:02:56]}  Nf6 {[%clk 0:02:59]} 3. c4 {[%clk 0:02:56]}  e6 {[%clk 0:03:00]} 4. Nc3 {[%clk 0:02:57]}  c5 {[%clk 0:03:00]} 5. e3 {[%clk 0:02:56]}  Nc6 {[%clk 0:02:59]} 6. a3 {[%clk 0:02:55]}  dxc4 {[%clk 0:02:59]} 7. Bxc4 {[%clk 0:02:54]}  a6 {[%clk 0:03:00]} 8. O-O {[%clk 0:02:51]}  b5 {[%clk 0:03:00]} 9. Be2 {[%clk 0:02:51]}  Bb7 {[%clk 0:03:00]} 10. dxc5 {[%clk 0:02:48]}  Qxd1 {[%clk 0:02:59]} 11. Rxd1 {[%clk 0:02:47]}  Bxc5 {[%clk 0:02:59]} 12. b4 {[%clk 0:02:47]}  Be7 {[%clk 0:02:52]} 13. Bb2 {[%clk 0:02:44]}  O-O {[%clk 0:02:52]} 14. Nd2 {[%clk 0:02:42]}  Rfd8 {[%clk 0:02:23]} 15. Bf3 {[%clk 0:02:35]}  Nd7 {[%clk 0:02:12]} 16. Nb3 {[%clk 0:02:29]}  Nde5 {[%clk 0:02:06]} 17. Ne4 {[%clk 0:02:23]}  Nc4 {[%clk 0:01:58]} 18. Bc3 {[%clk 0:02:02]}  N6e5 {[%clk 0:01:42]} 19. Kf1 {[%clk 0:01:30]}  Nxf3 {[%clk 0:01:32]} 20. gxf3 {[%clk 0:01:30]}  Bxe4 {[%clk 0:01:27]} 21. fxe4 {[%clk 0:01:28]}  Rac8 {[%clk 0:01:25]} 22. Bd4 {[%clk 0:01:22]}  e5 {[%clk 0:01:22]} 23. Bc5 {[%clk 0:01:22]}  Kf8 {[%clk 0:01:08]} 24. Bxe7+ {[%clk 0:01:13]}  Kxe7 {[%clk 0:01:08]} 25. Ke2 {[%clk 0:01:14]}  Rxd1 {[%clk 0:00:57]} 26. Kxd1 {[%clk 0:00:49]}  g6 {[%clk 0:00:45]} 27. Nc5 {[%clk 0:00:42]}  a5 {[%clk 0:00:42]} 28. Nd3 {[%clk 0:00:30]}  a4 {[%clk 0:00:34]} 29. Ke2 {[%clk 0:00:22]}  Rd8 {[%clk 0:00:28]} 30. f3 {[%clk 0:00:20]}  f6 {[%clk 0:00:24]} 31. Ra2 {[%clk 0:00:20]}  f5 {[%clk 0:00:19]} 32. exf5 {[%clk 0:00:18]}  gxf5 {[%clk 0:00:20]} 33. Nc5 {[%clk 0:00:17]}  Rg8 {[%clk 0:00:17]} 34. Kf2 {[%clk 0:00:16]}  h5 {[%clk 0:00:16]} 35. h3 {[%clk 0:00:16]}  h4 {[%clk 0:00:16]} 36. Rc2 {[%clk 0:00:11]}  Nxa3 {[%clk 0:00:14]} 37. Rd2 {[%clk 0:00:12]}  Rd8 {[%clk 0:00:14]} 38. Ra2 {[%clk 0:00:08]}  Nc4 {[%clk 0:00:13]} 39. e4 {[%clk 0:00:09]}  f4 {[%clk 0:00:11]} 40. Ke2 {[%clk 0:00:08]}  Rg8 {[%clk 0:00:11]} 41. Kf2 {[%clk 0:00:08]}  Ne3 {[%clk 0:00:11]} 42. Rd2 {[%clk 0:00:07]}  Rg2+ {[%clk 0:00:11]} 43. Ke1 {[%clk 0:00:08]}  Nc2+ {[%clk 0:00:11]} 44. Kd1 {[%clk 0:00:07]}  Rxd2+ {[%clk 0:00:11]} 45. Kxd2 {[%clk 0:00:00]}  Nxb4 {[%clk 0:00:12]} 0-1

[Event "December 19 Late 2023"]
[Site "https://www.chess.com"]
[Date "2023.12.19"]
[Round "7"]
[White "Pakleza, Zbigniew"]
[Black "Dubessay, Bastien"]
[Result "1-0"]
[Board "65"]
[TimeControl "180+1"]
[WhiteFideId "1119290"]
[BlackFideId "650048"]
[WhiteElo "2410"]
[BlackElo "2279"]
[WhiteTeam "POL"]
[BlackTeam "FRA"]
[WhiteClock "0:00:07"]
[BlackClock "0:00:13"]

1. d4 {[%clk 0:03:00]}  d5 {[%clk 0:02:58]} 2. Bf4 {[%clk 0:02:59]}  Nf6 {[%clk 0:02:56]} 3. e3 {[%clk 0:03:00]}  c5 {[%clk 0:02:56]} 4. c3 {[%clk 0:03:00]}  Nc6 {[%clk 0:02:53]} 5. Nd2 {[%clk 0:03:00]}  Qb6 {[%clk 0:02:46]} 6. Qb3 {[%clk 0:03:00]}  c4 {[%clk 0:02:42]} 7. Qc2 {[%clk 0:03:00]}  g6 {[%clk 0:02:39]} 8. e4 {[%clk 0:03:00]}  Nxe4 {[%clk 0:02:01]} 9. Nxe4 {[%clk 0:02:58]}  dxe4 {[%clk 0:02:01]} 10. Bxc4 {[%clk 0:02:57]}  Bg7 {[%clk 0:01:54]} 11. Ne2 {[%clk 0:02:51]}  Na5 {[%clk 0:01:51]} 12. Qa4+ {[%clk 0:02:22]}  Bd7 {[%clk 0:01:47]} 13. Bxf7+ {[%clk 0:02:22]}  Kxf7 {[%clk 0:01:42]} 14. Qxd7 {[%clk 0:02:22]}  Qxb2 {[%clk 0:01:43]} 15. Qd5+ {[%clk 0:02:09]}  Kf8 {[%clk 0:01:43]} 16. O-O {[%clk 0:02:01]}  Qxe2 {[%clk 0:01:42]} 17. Qxa5 {[%clk 0:02:01]}  Qa6 {[%clk 0:01:30]} 18. Qxa6 {[%clk 0:01:41]}  bxa6 {[%clk 0:01:31]} 19. Rfe1 {[%clk 0:01:40]}  Rc8 {[%clk 0:01:30]} 20. Bd2 {[%clk 0:01:15]}  Kf7 {[%clk 0:01:21]} 21. Rxe4 {[%clk 0:01:14]}  Rc4 {[%clk 0:01:17]} 22. Rb1 {[%clk 0:00:54]}  Rhc8 {[%clk 0:01:15]} 23. Kf1 {[%clk 0:00:48]}  Bf6 {[%clk 0:01:15]} 24. Ke2 {[%clk 0:00:40]}  Ra4 {[%clk 0:01:14]} 25. Rb2 {[%clk 0:00:41]}  Rc7 {[%clk 0:01:07]} 26. Kd3 {[%clk 0:00:38]}  Rac4 {[%clk 0:01:07]} 27. g4 {[%clk 0:00:30]}  e6 {[%clk 0:00:51]} 28. f4 {[%clk 0:00:26]}  Be7 {[%clk 0:00:49]} 29. Rb1 {[%clk 0:00:15]}  Ra4 {[%clk 0:00:48]} 30. Rbe1 {[%clk 0:00:13]}  Rc6 {[%clk 0:00:45]} 31. f5 {[%clk 0:00:12]}  Rxa2 {[%clk 0:00:35]} 32. Rxe6 {[%clk 0:00:11]}  Rxe6 {[%clk 0:00:35]} 33. fxe6+ {[%clk 0:00:12]}  Ke8 {[%clk 0:00:30]} 34. d5 {[%clk 0:00:12]}  Bd6 {[%clk 0:00:29]} 35. h4 {[%clk 0:00:08]}  Ra5 {[%clk 0:00:27]} 36. c4 {[%clk 0:00:07]}  Ra3+ {[%clk 0:00:27]} 37. Bc3 {[%clk 0:00:06]}  Bb4 {[%clk 0:00:27]} 38. Rc1 {[%clk 0:00:06]}  Ke7 {[%clk 0:00:26]} 39. Kd4 {[%clk 0:00:06]}  Bxc3+ {[%clk 0:00:16]} 40. Rxc3 {[%clk 0:00:07]}  Ra1 {[%clk 0:00:17]} 41. Rf3 {[%clk 0:00:06]}  Rd1+ {[%clk 0:00:17]} 42. Kc5 {[%clk 0:00:06]}  Rg1 {[%clk 0:00:15]} 43. Rf7+ {[%clk 0:00:05]}  Ke8 {[%clk 0:00:15]} 44. Kd6 {[%clk 0:00:06]}  Rxg4 {[%clk 0:00:16]} 45. c5 {[%clk 0:00:06]}  Rxh4 {[%clk 0:00:16]} 46. Rxa7 {[%clk 0:00:06]}  Kf8 {[%clk 0:00:16]} 47. e7+ {[%clk 0:00:06]}  Kf7 {[%clk 0:00:16]} 48. Ra8 {[%clk 0:00:06]}  Re4 {[%clk 0:00:13]} 49. Rf8+ {[%clk 0:00:07]} 1-0

[Event "December 19 Late 2023"]
[Site "https://www.chess.com"]
[Date "2023.12.19"]
[Round "7"]
[White "Sivakumar, Shaashwath"]
[Black "Kokoszczynski, Jan"]
[Result "0-1"]
[Board "69"]
[TimeControl "180+1"]
[WhiteFideId "30912156"]
[BlackFideId "1174460"]
[WhiteElo "2137"]
[BlackElo "2266"]
[WhiteTeam "USA"]
[BlackTeam "POL"]
[WhiteClock "0:00:00"]
[BlackClock "0:00:04"]

1. d4 {[%clk 0:03:00]}  Nf6 {[%clk 0:02:59]} 2. c4 {[%clk 0:02:55]}  g6 {[%clk 0:02:59]} 3. Nc3 {[%clk 0:02:54]}  Bg7 {[%clk 0:03:00]} 4. e4 {[%clk 0:02:50]}  O-O {[%clk 0:03:01]} 5. f3 {[%clk 0:02:48]}  d6 {[%clk 0:03:00]} 6. Nge2 {[%clk 0:02:48]}  c6 {[%clk 0:02:58]} 7. Be3 {[%clk 0:02:44]}  a6 {[%clk 0:02:57]} 8. a4 {[%clk 0:02:32]}  a5 {[%clk 0:02:56]} 9. Qd2 {[%clk 0:02:29]}  Na6 {[%clk 0:02:56]} 10. Bh6 {[%clk 0:02:25]}  Nb4 {[%clk 0:02:56]} 11. Bxg7 {[%clk 0:02:24]}  Kxg7 {[%clk 0:02:57]} 12. h4 {[%clk 0:02:22]}  h5 {[%clk 0:02:57]} 13. Rd1 {[%clk 0:02:15]}  d5 {[%clk 0:02:38]} 14. cxd5 {[%clk 0:02:10]}  cxd5 {[%clk 0:02:38]} 15. e5 {[%clk 0:02:10]}  Ng8 {[%clk 0:02:39]} 16. g4 {[%clk 0:02:05]}  hxg4 {[%clk 0:02:36]} 17. h5 {[%clk 0:02:06]}  gxf3 {[%clk 0:02:36]} 18. Nf4 {[%clk 0:01:59]}  Bg4 {[%clk 0:02:19]} 19. hxg6 {[%clk 0:01:48]}  fxg6 {[%clk 0:02:18]} 20. Qh2 {[%clk 0:01:27]}  Rxf4 {[%clk 0:01:39]} 21. Qxf4 {[%clk 0:01:23]}  f2+ {[%clk 0:01:39]} 22. Qxf2 {[%clk 0:01:18]}  Bxd1 {[%clk 0:01:38]} 23. Kxd1 {[%clk 0:01:18]}  Qf8 {[%clk 0:01:32]} 24. Qh4 {[%clk 0:01:11]}  Qf5 {[%clk 0:01:29]} 25. Be2 {[%clk 0:01:08]}  Qc2+ {[%clk 0:01:01]} 26. Ke1 {[%clk 0:01:07]}  Qc1+ {[%clk 0:01:02]} 27. Nd1 {[%clk 0:01:07]}  Qh6 {[%clk 0:01:03]} 28. Qxh6+ {[%clk 0:00:54]}  Nxh6 {[%clk 0:01:04]} 29. Ne3 {[%clk 0:00:53]}  Rc8 {[%clk 0:00:59]} 30. Kd2 {[%clk 0:00:52]}  e6 {[%clk 0:00:28]} 31. Rg1 {[%clk 0:00:51]}  Nf5 {[%clk 0:00:19]} 32. Nxf5+ {[%clk 0:00:28]}  exf5 {[%clk 0:00:18]} 33. Bd1 {[%clk 0:00:22]}  Rc4 {[%clk 0:00:16]} 34. Ke3 {[%clk 0:00:20]}  Rc1 {[%clk 0:00:15]} 35. Kd2 {[%clk 0:00:19]}  Ra1 {[%clk 0:00:15]} 36. Kc3 {[%clk 0:00:18]}  Nc6 {[%clk 0:00:15]} 37. Re1 {[%clk 0:00:16]}  Kf7 {[%clk 0:00:13]} 38. b3 {[%clk 0:00:14]}  Ke7 {[%clk 0:00:12]} 39. Kb2 {[%clk 0:00:14]}  Rxd1 {[%clk 0:00:11]} 40. Rxd1 {[%clk 0:00:15]}  g5 {[%clk 0:00:09]} 41. Kc3 {[%clk 0:00:14]}  g4 {[%clk 0:00:08]} 42. Kd3 {[%clk 0:00:14]}  Nd8 {[%clk 0:00:07]} 43. Ke3 {[%clk 0:00:15]}  Ne6 {[%clk 0:00:07]} 44. Rf1 {[%clk 0:00:14]}  Ng7 {[%clk 0:00:03]} 45. Kf4 {[%clk 0:00:14]}  Nh5+ {[%clk 0:00:02]} 46. Kg5 {[%clk 0:00:13]}  Ng3 {[%clk 0:00:02]} 47. Rg1 {[%clk 0:00:13]}  Ne2 {[%clk 0:00:01]} 48. Rd1 {[%clk 0:00:12]}  g3 {[%clk 0:00:01]} 49. Rh1 {[%clk 0:00:06]}  g2 {[%clk 0:00:01]} 50. Rh7+ {[%clk 0:00:06]}  Ke6 {[%clk 0:00:01]} 51. Rh6+ {[%clk 0:00:05]}  Kd7 {[%clk 0:00:02]} 52. Rh7+ {[%clk 0:00:02]}  Kc6 {[%clk 0:00:02]} 53. Rh6+ {[%clk 0:00:02]}  Kc7 {[%clk 0:00:03]} 54. Rh7+ {[%clk 0:00:03]}  Kb6 {[%clk 0:00:03]} 55. Rh6+ {[%clk 0:00:00]}  Ka7 {[%clk 0:00:04]} 0-1

[Event "December 19 Late 2023"]
[Site "https://www.chess.com"]
[Date "2023.12.19"]
[Round "7"]
[White "Federzoni, Enzo"]
[Black "Ambartsumova, Karina"]
[Result "0-1"]
[Board "70"]
[TimeControl "180+1"]
[WhiteFideId "2173301"]
[BlackFideId "4166299"]
[WhiteElo "2053"]
[BlackElo "2240"]
[WhiteTeam "BRA"]
[BlackTeam "RUS"]
[WhiteClock "0:00:41"]
[BlackClock "0:01:00"]

1. d4 {[%clk 0:03:00]}  Nf6 {[%clk 0:03:00]} 2. Nc3 {[%clk 0:03:00]}  d5 {[%clk 0:02:59]} 3. Bf4 {[%clk 0:03:00]}  g6 {[%clk 0:03:00]} 4. e3 {[%clk 0:02:59]}  Bg7 {[%clk 0:03:00]} 5. h4 {[%clk 0:02:59]}  h5 {[%clk 0:03:01]} 6. Nf3 {[%clk 0:02:50]}  O-O {[%clk 0:03:00]} 7. Ne5 {[%clk 0:02:37]}  c5 {[%clk 0:03:00]} 8. Be2 {[%clk 0:02:34]}  Nc6 {[%clk 0:02:54]} 9. O-O {[%clk 0:02:31]}  cxd4 {[%clk 0:02:54]} 10. exd4 {[%clk 0:02:31]}  Qb6 {[%clk 0:02:53]} 11. Nxc6 {[%clk 0:02:27]}  Qxc6 {[%clk 0:02:53]} 12. Bf3 {[%clk 0:02:25]}  Bf5 {[%clk 0:02:51]} 13. Re1 {[%clk 0:02:24]}  e6 {[%clk 0:02:50]} 14. Be5 {[%clk 0:02:23]}  b5 {[%clk 0:02:48]} 15. a3 {[%clk 0:02:21]}  a5 {[%clk 0:02:48]} 16. Rc1 {[%clk 0:02:21]}  b4 {[%clk 0:02:48]} 17. axb4 {[%clk 0:02:21]}  axb4 {[%clk 0:02:49]} 18. Ne2 {[%clk 0:02:21]}  Ra2 {[%clk 0:02:44]} 19. c4 {[%clk 0:02:15]}  Rxb2 {[%clk 0:02:15]} 20. cxd5 {[%clk 0:02:14]}  Qb6 {[%clk 0:02:15]} 21. d6 {[%clk 0:02:11]}  b3 {[%clk 0:02:14]} 22. Nc3 {[%clk 0:02:02]}  Rc2 {[%clk 0:02:12]} 23. Bxf6 {[%clk 0:01:57]}  Bxf6 {[%clk 0:02:08]} 24. Ne4 {[%clk 0:01:57]}  Bxd4 {[%clk 0:01:52]} 25. Rxc2 {[%clk 0:01:55]}  bxc2 {[%clk 0:01:53]} 26. Qxc2 {[%clk 0:01:53]}  Qxd6 {[%clk 0:01:51]} 27. Qd2 {[%clk 0:01:40]}  Qe5 {[%clk 0:01:36]} 28. Ng5 {[%clk 0:01:28]}  Qf6 {[%clk 0:01:31]} 29. Rd1 {[%clk 0:01:25]}  e5 {[%clk 0:01:28]} 30. Be4 {[%clk 0:01:23]}  Bxe4 {[%clk 0:01:26]} 31. Nxe4 {[%clk 0:01:24]}  Qxh4 {[%clk 0:01:26]} 32. Qd3 {[%clk 0:01:12]}  f5 {[%clk 0:01:20]} 33. Ng3 {[%clk 0:01:03]}  Rd8 {[%clk 0:01:07]} 34. Qb3+ {[%clk 0:00:59]}  Kh8 {[%clk 0:01:07]} 35. Rc1 {[%clk 0:00:52]}  Bxf2+ {[%clk 0:01:03]} 36. Kxf2 {[%clk 0:00:52]}  Qf4+ {[%clk 0:01:03]} 37. Qf3 {[%clk 0:00:43]}  Qxc1 {[%clk 0:01:03]} 38. Nxf5 {[%clk 0:00:44]}  Qc2+ {[%clk 0:01:00]} 39. Kg1 {[%clk 0:00:41]}  Qxf5 {[%clk 0:01:00]} 0-1

[Event "December 19 Late 2023"]
[Site "https://www.chess.com"]
[Date "2023.12.19"]
[Round "7"]
[White "Keleberda, Tymur"]
[Black "Blanco Diez, David"]
[Result "1-0"]
[Board "75"]
[TimeControl "180+1"]
[WhiteFideId "14174294"]
[BlackFideId "32032927"]
[WhiteElo "2198"]
[BlackElo "2170"]
[WhiteTeam "CAN"]
[BlackTeam "ESP"]
[WhiteClock "0:00:40"]
[BlackClock "0:00:02"]

1. e4 {[%clk 0:02:53]}  c5 {[%clk 0:02:59]} 2. Nf3 {[%clk 0:02:53]}  e6 {[%clk 0:02:59]} 3. c3 {[%clk 0:02:53]}  d5 {[%clk 0:02:58]} 4. exd5 {[%clk 0:02:54]}  Qxd5 {[%clk 0:02:59]} 5. d4 {[%clk 0:02:54]}  Nf6 {[%clk 0:02:58]} 6. Na3 {[%clk 0:02:52]}  a6 {[%clk 0:02:50]} 7. Nc2 {[%clk 0:02:49]}  Nc6 {[%clk 0:02:46]} 8. Be2 {[%clk 0:02:41]}  Be7 {[%clk 0:02:40]} 9. Bf4 {[%clk 0:02:41]}  O-O {[%clk 0:02:34]} 10. O-O {[%clk 0:02:40]}  Rd8 {[%clk 0:02:34]} 11. Bg3 {[%clk 0:02:15]}  cxd4 {[%clk 0:02:16]} 12. Ncxd4 {[%clk 0:02:15]}  Nh5 {[%clk 0:02:11]} 13. Nxc6 {[%clk 0:02:11]}  Qxc6 {[%clk 0:02:10]} 14. Nd4 {[%clk 0:02:12]}  Qb6 {[%clk 0:02:02]} 15. Bxh5 {[%clk 0:02:12]}  Qxb2 {[%clk 0:01:52]} 16. Qf3 {[%clk 0:02:09]}  g6 {[%clk 0:01:48]} 17. Bg4 {[%clk 0:02:08]}  f5 {[%clk 0:00:57]} 18. Bh3 {[%clk 0:02:07]}  Bf6 {[%clk 0:00:51]} 19. Rae1 {[%clk 0:01:59]}  Qxa2 {[%clk 0:00:44]} 20. Be5 {[%clk 0:01:55]}  Bg5 {[%clk 0:00:40]} 21. Rd1 {[%clk 0:01:28]}  Qc4 {[%clk 0:00:35]} 22. Qg3 {[%clk 0:01:20]}  Be7 {[%clk 0:00:27]} 23. Qf4 {[%clk 0:01:17]}  b5 {[%clk 0:00:20]} 24. Qh6 {[%clk 0:01:11]}  Bf8 {[%clk 0:00:20]} 25. Qg5 {[%clk 0:01:10]}  Rd7 {[%clk 0:00:17]} 26. Nf3 {[%clk 0:00:49]}  Raa7 {[%clk 0:00:12]} 27. Rd4 {[%clk 0:00:41]}  Rxd4 {[%clk 0:00:09]} 28. Bxd4 {[%clk 0:00:42]}  Rd7 {[%clk 0:00:08]} 29. Ne5 {[%clk 0:00:42]}  Qc7 {[%clk 0:00:02]} 30. Nxd7 {[%clk 0:00:40]}  Qxd7 {[%clk 0:00:02]} 1-0